fUSD/lending_fUSD_20250109
["ID","MTS","AMOUNT","RATE_DAILY","PERIOD"]
[348350399,1736461832976,-500.0,9.841e-05,2]
[348350400,1736461832986,-734.97,9.841e-05,2]
[348350401,1736461832995,-787.41,9.841e-05,2]
[348350402,1736461833005,-940.77,9.841e-05,2]
[348350403,1736461833014,-583.20689138,9.841e-05,2]
[348350404,1736461833024,-537.4,9.841e-05,2]
[348350405,1736461833034,-500.0,9.841e-05,2]
[348350406,1736461833044,-500.0,9.841e-05,2]
[348350407,1736461833054,-500.0,9.841e-05,2]
[348350408,1736461833063,-500.0,9.841e-05,2]
[348350409,1736461833073,-500.0,9.841e-05,2]
[348350410,1736461833083,-500.0,9.841e-05,2]
[348350411,1736461833093,-500.0,9.841e-05,2]
[348350412,1736461833102,-500.0,9.841e-05,2]
[348350413,1736461833112,-500.0,9.841e-05,2]
[348350414,1736461833121,-571.71,9.841e-05,2]
[348350415,1736461833131,-737.87,9.841e-05,2]
[348350416,1736461833141,-565.57,9.841e-05,2]
[348350417,1736461833151,-500.0,9.841e-05,2]
[348350418,1736461833161,-516.15,9.841e-05,2]
[348350419,1736461833172,-934.18,9.841e-05,2]
[348350420,1736461833182,-1267.12,9.841e-05,2]
[348350421,1736461833192,-959.75,9.841e-05,2]
[348350422,1736461833203,-500.0,9.841e-05,2]
[348350423,1736461833213,-500.0,9.841e-05,2]
[348350424,1736461833223,-500.0,9.841e-05,2]
[348350425,1736461833234,-500.0,9.841e-05,2]
[348350426,1736461833244,-500.0,9.841e-05,2]
[348350427,1736461833254,-500.0,9.841e-05,2]
[348350428,1736461833264,-500.0,9.841e-05,2]
[348350429,1736461833273,-500.0,9.841e-05,2]
[348350430,1736461833283,-500.0,9.841e-05,2]
[348350431,1736461833292,-500.0,9.841e-05,2]
[348350432,1736461833302,-500.0,9.841e-05,2]
[348350433,1736461833312,-500.0,9.841e-05,2]
[348350434,1736461833321,-500.0,9.841e-05,2]
[348350435,1736461833331,-507.23,9.841e-05,2]
[348350436,1736461833340,-500.0,9.841e-05,2]
[348350437,1736461833350,-500.0,9.841e-05,2]
[348350438,1736461833359,-664.96,9.841e-05,2]
[348350439,1736461833369,-500.0,9.841e-05,2]
[348350440,1736461833378,-500.0,9.841e-05,2]
[348350441,1736461833388,-1030.96,9.841e-05,2]
[348350442,1736461833398,-500.0,9.841e-05,2]
[348350443,1736461833408,-500.0,9.841e-05,2]
[348350444,1736461833419,-1062.09,9.841e-05,2]
[348350445,1736461833428,-838.28,9.841e-05,2]
[348350446,1736461833438,-559.47,9.841e-05,2]
[348350447,1736461833448,-500.0,9.841e-05,2]
[348350448,1736461833459,-782.41,9.841e-05,2]
[348350449,1736461833469,-1044.54,9.841e-05,2]
[348350450,1736461833480,-500.0,9.841e-05,2]
[348350451,1736461833490,-500.0,9.841e-05,2]
[348350452,1736461833500,-500.0,9.841e-05,2]
[348350453,1736461833509,-500.0,9.841e-05,2]
[348350454,1736461833519,-280.483088,9.841e-05,2]
[348350455,1736461833528,-1054.83,9.841e-05,2]
[348350456,1736461833538,-770.42,9.841e-05,2]
[348350457,1736461833547,-500.0,9.841e-05,2]
[348350458,1736461833556,-500.0,9.841e-05,2]
[348350459,1736461833566,-708.26,9.841e-05,2]
[348350460,1736461833575,-1050.52,9.841e-05,2]
[348350461,1736461833586,-500.0,9.841e-05,2]
[348350462,1736461833596,-972.0,9.841e-05,2]
[348350463,1736461833605,-535.34,9.841e-05,2]
[348350464,1736461833615,-1012.85,9.841e-05,2]
[348350465,1736461833625,-500.0,9.841e-05,2]
[348350466,1736461833635,-500.0,9.841e-05,2]
[348350467,1736461833644,-602.56,9.841e-05,2]
[348350468,1736461833654,-929.98,9.841e-05,2]
[348350469,1736461833664,-3248.48,9.841e-05,2]
[348350470,1736461833673,-910.14,9.841e-05,2]
[348350471,1736461833683,-1400.95,9.841e-05,2]
[348350472,1736461833692,-815.05,9.841e-05,2]
[348350473,1736461833703,-611.14,9.841e-05,2]
[348350474,1736461833713,-1811.07,9.841e-05,2]
[348350475,1736461833723,-500.0,9.841e-05,2]
[348350476,1736461833734,-2850.38,9.841e-05,2]
[348350477,1736461833744,-8793.33,9.841e-05,2]
[348350478,1736461833754,-500.0,9.841e-05,2]
[348350479,1736461833765,-1807.5,9.841e-05,2]
[348350480,1736461833776,-860.82,9.841e-05,2]
[348350481,1736461833786,-500.0,9.841e-05,2]
[348350482,1736461833797,-952.19,9.841e-05,2]
[348350483,1736461833807,-601.74,9.841e-05,2]
[348350484,1736461833818,-500.0,9.841e-05,2]
[348350485,1736461833828,-500.0,9.841e-05,2]
[348350486,1736461833838,-500.0,9.841e-05,2]
[348350487,1736461833849,-3535.24,9.841e-05,2]
[348350488,1736461833858,-500.0,9.841e-05,2]
[348350489,1736461833869,-745.61,9.841e-05,2]
[348350490,1736461833880,-4907.74,9.841e-05,2]
[348350491,1736461833891,-1408.37,9.841e-05,2]
[348350492,1736461833901,-633.33,9.841e-05,2]
[348350493,1736461833911,-2746.14,9.841e-05,2]
[348350494,1736461833920,-1101.89,9.841e-05,2]
[348350495,1736461833930,-3236.51,9.841e-05,2]
[348350496,1736461833939,-939.27,9.841e-05,2]
[348350497,1736461833951,-561.92,9.841e-05,2]
[348350498,1736461833962,-1000.67,9.841e-05,2]
[348350499,1736461833973,-1745.75,9.841e-05,2]
[348350500,1736461833983,-906.9,9.841e-05,2]
[348350501,1736461833992,-500.0,9.841e-05,2]
[348350502,1736461834002,-5085.38,9.841e-05,2]
[348350503,1736461834013,-3303.88,9.841e-05,2]
[348350504,1736461834022,-500.0,9.841e-05,2]
[348350505,1736461834031,-1174.07507,9.841e-05,2]
[348350506,1736461834041,-1024.79,9.841e-05,2]
[348350507,1736461834051,-1530.59,9.841e-05,2]
[348350508,1736461834060,-159.436357,9.841e-05,2]
[348350509,1736461834071,-1079.96,9.841e-05,2]
[348350510,1736461834081,-677.89,9.841e-05,2]
[348350511,1736461834091,-929.76,9.841e-05,2]
[348350512,1736461834101,-1186.32,9.841e-05,2]
[348350513,1736461834111,-544.13,9.841e-05,2]
[348350514,1736461834122,-2317.13,9.841e-05,2]
[348350515,1736461834132,-1217.891087,9.841e-05,2]
[348350516,1736461834142,-500.0,9.841e-05,2]
[348350517,1736461834152,-928.6,9.841e-05,2]
[348350518,1736461834161,-500.0,9.841e-05,2]
[348350519,1736461834172,-1689.29,9.841e-05,2]
[348350520,1736461834181,-954.79,9.841e-05,2]
[348350521,1736461834191,-701.56,9.841e-05,2]
[348350522,1736461834203,-500.0,9.841e-05,2]
[348350523,1736461834214,-500.0,9.841e-05,2]
[348350524,1736461834224,-567.77,9.841e-05,2]
[348350525,1736461834233,-500.0,9.841e-05,2]
[348350526,1736461834243,-3383.76,9.841e-05,2]
[348350527,1736461834253,-1038.34,9.841e-05,2]
[348350528,1736461834263,-500.0,9.842e-05,2]
[348350529,1736461834273,-635.65,9.842e-05,2]
[348350530,1736461834283,-651.66,9.842e-05,2]
[348350531,1736461834293,-500.0,9.842e-05,2]
[348350532,1736461834303,-582.06,9.842e-05,2]
[348350533,1736461834312,-500.0,9.842e-05,2]
[348350534,1736461834322,-636.79,9.842e-05,2]
[348350535,1736461834332,-739.04,9.842e-05,2]
[348350536,1736461834342,-500.0,9.842e-05,2]
[348350537,1736461834351,-500.0,9.842e-05,2]
[348350538,1736461834361,-500.0,9.842e-05,2]
[348350539,1736461834371,-500.0,9.842e-05,2]
[348350540,1736461834382,-518.92,9.842e-05,2]
[348350541,1736461834392,-500.0,9.842e-05,2]
[348350542,1736461834402,-500.0,9.842e-05,2]
[348350543,1736461834412,-500.0,9.842e-05,2]
[348350544,1736461834421,-507.34,9.842e-05,2]
[348350545,1736461834431,-546.45,9.842e-05,2]
[348350546,1736461834441,-500.0,9.842e-05,2]
[348350547,1736461834452,-532.95,9.842e-05,2]
[348350548,1736461834462,-698.1,9.842e-05,2]
[348350549,1736461834471,-922.22,9.842e-05,2]
[348350550,1736461834481,-500.0,9.842e-05,2]
[348350551,1736461834491,-500.0,9.842e-05,2]
[348350552,1736461834501,-983.14,9.842e-05,2]
[348350553,1736461834511,-500.0,9.842e-05,2]
[348350554,1736461834521,-500.0,9.842e-05,2]
[348350555,1736461834531,-998.25,9.842e-05,2]
[348350556,1736461834541,-650.36,9.842e-05,2]
[348350557,1736461834550,-861.7,9.842e-05,2]
[348350558,1736461834560,-500.0,9.842e-05,2]
[348350559,1736461834570,-502.53,9.842e-05,2]
[348350560,1736461834579,-658.83,9.842e-05,2]
[348350561,1736461834589,-500.0,9.842e-05,2]
[348350562,1736461834599,-869.99,9.842e-05,2]
[348350563,1736461834608,-608.01,9.842e-05,2]
[348350564,1736461834618,-500.0,9.842e-05,2]
[348350565,1736461834627,-555.57,9.842e-05,2]
[348350566,1736461834637,-1649.42,9.842e-05,2]
[348350567,1736461834646,-551.61,9.842e-05,2]
[348350568,1736461834655,-500.0,9.842e-05,2]
[348350569,1736461834665,-500.0,9.842e-05,2]
[348350570,1736461834674,-500.0,9.842e-05,2]
[348350571,1736461834683,-583.03,9.842e-05,2]
[348350572,1736461834692,-915.56,9.842e-05,2]
[348350573,1736461834703,-500.0,9.842e-05,2]
[348350574,1736461834713,-500.0,9.842e-05,2]
[348350575,1736461834723,-500.0,9.842e-05,2]
[348350576,1736461834733,-690.73,9.842e-05,2]
[348350577,1736461834742,-500.0,9.842e-05,2]
[348350578,1736461834751,-500.0,9.842e-05,2]
[348350579,1736461834761,-500.0,9.842e-05,2]
[348350580,1736461834770,-500.0,9.842e-05,2]
[348350581,1736461834780,-749.69,9.842e-05,2]
[348350582,1736461834790,-982.25,9.842e-05,2]
[348350583,1736461834799,-1765.96,9.842e-05,2]
[348350584,1736461834809,-1032.02,9.842e-05,2]
[348350585,1736461834819,-500.0,9.842e-05,2]
[348350586,1736461834828,-1177.31,9.842e-05,2]
[348350587,1736461834838,-448.79245264,9.842e-05,2]
[348350588,1736461834847,-500.0,9.842e-05,2]
[348350589,1736461834856,-500.0,9.842e-05,2]
[348350590,1736461834866,-4699.67,9.842e-05,2]
[348350591,1736461834876,-500.0,9.842e-05,2]
[348350592,1736461834889,-500.0,9.842e-05,2]
[348350593,1736461834898,-500.0,9.842e-05,2]
[348350594,1736461834908,-500.0,9.842e-05,2]
[348350595,1736461834917,-500.0,9.842e-05,2]
[348350596,1736461834926,-739.58,9.842e-05,2]
[348350597,1736461834935,-2002.59,9.842e-05,2]
[348350598,1736461834945,-882.64,9.842e-05,2]
[348350599,1736461834954,-900.57,9.842e-05,2]
[348350600,1736461834964,-1165.13,9.842e-05,2]
[348350601,1736461834973,-1516.99,9.842e-05,2]
[348350602,1736461834983,-500.0,9.842e-05,2]
[348350603,1736461834992,-600.3,9.842e-05,2]
[348350604,1736461835002,-511.09,9.842e-05,2]
[348350605,1736461835010,-1538.48,9.842e-05,2]
[348350606,1736461835019,-500.0,9.842e-05,2]
[348350607,1736461835028,-500.0,9.842e-05,2]
[348350608,1736461835038,-698.29,9.842e-05,2]
[348350609,1736461835047,-500.0,9.842e-05,2]
[348350610,1736461835056,-3216.35,9.842e-05,2]
[348350611,1736461835066,-541.72,9.842e-05,2]
[348350612,1736461835074,-668.04,9.842e-05,2]
[348350613,1736461835083,-500.0,9.842e-05,2]
[348350614,1736461835093,-889.72,9.842e-05,2]
[348350615,1736461835100,-987.45,9.842e-05,2]
[348350616,1736461835108,-695.66,9.842e-05,2]
[348350617,1736461835117,-2007.88,9.842e-05,2]
[348350618,1736461835127,-5340.01,9.842e-05,2]
[348350619,1736461835137,-645.68,9.842e-05,2]
[348350620,1736461835146,-553.45,9.842e-05,2]
[348350621,1736461835155,-500.0,9.843e-05,2]
[348350622,1736461835164,-581.11322584,9.843e-05,2]
[348350623,1736461835172,-500.0,9.843e-05,2]
[348350624,1736461835181,-527.07015604,9.843e-05,2]
[348350625,1736461835190,-500.0,9.843e-05,2]
[348350626,1736461835198,-500.0,9.843e-05,2]
[348350627,1736461835208,-613.49,9.843e-05,2]
[348350628,1736461835216,-500.0,9.843e-05,2]
[348350629,1736461835224,-500.0,9.843e-05,2]
[348350630,1736461835232,-500.0,9.843e-05,2]
[348350631,1736461835241,-500.0,9.843e-05,2]
[348350632,1736461835251,-500.0,9.843e-05,2]
[348350633,1736461835262,-500.0,9.843e-05,2]
[348350634,1736461835272,-500.0,9.843e-05,2]
[348350635,1736461835281,-500.0,9.843e-05,2]
[348350636,1736461835292,-295.07081387,9.843e-05,2]
[348350637,1736461835302,-500.0,9.843e-05,2]
[348350638,1736461835311,-558.46,9.843e-05,2]
[348350639,1736461835320,-500.0,9.843e-05,2]
[348350640,1736461835330,-500.0,9.843e-05,2]
[348350641,1736461835339,-500.0,9.843e-05,2]
[348350642,1736461835348,-500.0,9.843e-05,2]
[348350643,1736461835358,-500.0,9.843e-05,2]
[348350644,1736461835367,-500.0,9.843e-05,2]
[348350645,1736461835377,-500.0,9.843e-05,2]
[348350646,1736461835386,-500.0,9.843e-05,2]
[348350647,1736461835395,-500.0,9.843e-05,2]
[348350648,1736461835405,-500.0,9.843e-05,2]
[348350649,1736461835414,-500.0,9.843e-05,2]
[348350650,1736461835423,-500.0,9.843e-05,2]
[348350651,1736461835433,-500.0,9.843e-05,2]
[348350652,1736461835441,-500.0,9.843e-05,2]
[348350653,1736461835451,-500.0,9.843e-05,2]
[348350654,1736461835461,-500.0,9.843e-05,2]
[348350655,1736461835470,-500.0,9.843e-05,2]
[348350656,1736461835479,-500.0,9.843e-05,2]
[348350657,1736461835488,-500.0,9.843e-05,2]
[348350658,1736461835497,-500.0,9.843e-05,2]
[348350659,1736461835506,-500.0,9.843e-05,2]
[348350660,1736461835515,-500.0,9.843e-05,2]
[348350661,1736461835524,-500.0,9.843e-05,2]
[348350662,1736461835533,-500.0,9.843e-05,2]
[348350663,1736461835543,-500.0,9.843e-05,2]
[348350664,1736461835552,-500.0,9.843e-05,2]
[348350665,1736461835562,-500.0,9.843e-05,2]
[348350666,1736461835571,-500.0,9.843e-05,2]
[348350667,1736461835580,-500.0,9.843e-05,2]
[348350668,1736461835589,-500.0,9.843e-05,2]
[348350669,1736461835599,-500.0,9.843e-05,2]
[348350670,1736461835609,-500.0,9.843e-05,2]
[348350671,1736461835619,-500.0,9.843e-05,2]
[348350672,1736461835628,-500.0,9.843e-05,2]
[348350673,1736461835637,-500.0,9.843e-05,2]
[348350674,1736461835647,-500.0,9.843e-05,2]
[348350675,1736461835657,-500.0,9.843e-05,2]
[348350676,1736461835666,-500.0,9.843e-05,2]
[348350677,1736461835676,-500.0,9.843e-05,2]
[348350678,1736461835685,-500.0,9.843e-05,2]
[348350679,1736461835695,-500.0,9.843e-05,2]
[348350680,1736461835705,-500.0,9.843e-05,2]
[348350681,1736461835714,-500.0,9.843e-05,2]
[348350682,1736461835724,-500.0,9.843e-05,2]
[348350683,1736461835734,-500.0,9.843e-05,2]
[348350684,1736461835744,-500.0,9.843e-05,2]
[348350685,1736461835753,-500.0,9.843e-05,2]
[348350686,1736461835763,-500.0,9.843e-05,2]
[348350687,1736461835773,-500.0,9.843e-05,2]
[348350688,1736461835782,-543.05875418,9.843e-05,2]
[348350689,1736461835792,-500.0,9.843e-05,2]
[348350690,1736461835802,-500.0,9.843e-05,2]
[348350691,1736461835811,-500.0,9.843e-05,2]
[348350692,1736461835821,-500.0,9.843e-05,2]
[348350693,1736461835830,-500.0,9.843e-05,2]
[348350694,1736461835840,-500.0,9.843e-05,2]
[348350695,1736461835850,-500.0,9.843e-05,2]
[348350696,1736461835859,-500.0,9.843e-05,2]
[348350697,1736461835869,-500.0,9.843e-05,2]
[348350698,1736461835879,-500.0,9.843e-05,2]
[348350699,1736461835890,-500.0,9.843e-05,2]
[348350700,1736461835900,-500.0,9.843e-05,2]
[348350701,1736461835909,-500.0,9.843e-05,2]
[348350702,1736461835919,-500.0,9.843e-05,2]
[348350703,1736461835929,-500.0,9.843e-05,2]
[348350704,1736461835938,-500.0,9.843e-05,2]
[348350705,1736461835948,-374.16283015,9.843e-05,2]
[348350706,1736461835960,-500.0,9.843e-05,2]
[348350707,1736461835969,-500.0,9.843e-05,2]
[348350708,1736461835978,-500.0,9.843e-05,2]
[348350709,1736461835988,-500.0,9.843e-05,2]
[348350710,1736461835997,-500.0,9.843e-05,2]
[348350711,1736461836007,-500.0,9.843e-05,2]
[348350712,1736461836015,-607.03628571,9.843e-05,2]
[348350713,1736461836025,-150.0,9.843e-05,2]
[348350714,1736461836035,-500.0,9.843e-05,2]
[348350715,1736461836044,-500.0,9.843e-05,2]
[348350716,1736461836054,-500.0,9.843e-05,2]
[348350717,1736461836064,-500.0,9.843e-05,2]
[348350718,1736461836074,-500.0,9.843e-05,2]
[348350719,1736461836083,-516.61090775,9.843e-05,2]
[348350720,1736461836093,-839.64,9.843e-05,2]
[348350721,1736461836103,-500.0,9.843e-05,2]
[348350722,1736461836112,-556.31,9.843e-05,2]
[348350723,1736461836122,-539.41,9.843e-05,2]
[348350724,1736461836131,-500.0,9.843e-05,2]
[348350725,1736461836140,-500.0,9.843e-05,2]
[348350726,1736461836150,-936.21,9.843e-05,2]
[348350727,1736461836161,-500.0,9.843e-05,2]
[348350728,1736461836172,-359.15581335,9.843e-05,2]
[348350729,1736461836182,-500.0,9.843e-05,2]
[348350730,1736461836191,-580.2,9.843e-05,2]
[348350731,1736461836201,-500.0,9.843e-05,2]
[348350732,1736461836211,-500.0,9.843e-05,2]
[348350733,1736461836221,-852.47,9.843e-05,2]
[348350734,1736461836231,-500.0,9.843e-05,2]
[348350735,1736461836240,-500.0,9.843e-05,2]
[348350736,1736461836249,-500.0,9.843e-05,2]
[348350737,1736461836258,-500.0,9.843e-05,2]
[348350738,1736461836268,-500.0,9.843e-05,2]
[348350739,1736461836277,-780.26,9.843e-05,2]
[348350740,1736461836287,-503.24409583,9.843e-05,2]
[348350741,1736461836296,-500.0,9.843e-05,2]
[348350742,1736461836308,-500.0,9.843e-05,2]
[348350743,1736461836318,-775.85,9.843e-05,2]
[348350744,1736461836327,-1057.84,9.843e-05,2]
[348350745,1736461836336,-500.0,9.843e-05,2]
[348350746,1736461836345,-500.0,9.843e-05,2]
[348350747,1736461836355,-747.68,9.843e-05,2]
[348350748,1736461836364,-500.0,9.843e-05,2]
[348350749,1736461836375,-607.23,9.843e-05,2]
[348350750,1736461836384,-500.0,9.843e-05,2]
[348350751,1736461836394,-1265.93,9.843e-05,2]
[348350752,1736461836403,-656.86,9.843e-05,2]
[348350753,1736461836412,-1105.45,9.843e-05,2]
[348350754,1736461836422,-500.0,9.843e-05,2]
[348350755,1736461836431,-187.98,9.843e-05,2]
[348350756,1736461836441,-500.0,9.843e-05,2]
[348350757,1736461836450,-602.7,9.843e-05,2]
[348350758,1736461836460,-500.0,9.843e-05,2]
[348350759,1736461836470,-796.92,9.843e-05,2]
[348350760,1736461836479,-500.0,9.843e-05,2]
[348350761,1736461836488,-500.0,9.843e-05,2]
[348350762,1736461836497,-500.0,9.843e-05,2]
[348350763,1736461836507,-500.0,9.843e-05,2]
[348350764,1736461836516,-500.0,9.844e-05,2]
[348350765,1736461836526,-500.0,9.844e-05,2]
[348350766,1736461836535,-500.0,9.844e-05,2]
[348350767,1736461836544,-500.0,9.844e-05,2]
[348350768,1736461836553,-500.0,9.844e-05,2]
[348350769,1736461836562,-500.0,9.844e-05,2]
[348350770,1736461836571,-500.0,9.844e-05,2]
[348350771,1736461836581,-625.09855582,9.844e-05,2]
[348350772,1736461836590,-500.0,9.844e-05,2]
[348350773,1736461836599,-500.0,9.844e-05,2]
[348350774,1736461836608,-500.0,9.844e-05,2]
[348350775,1736461836617,-500.0,9.844e-05,2]
[348350776,1736461836627,-500.0,9.844e-05,2]
[348350777,1736461836635,-500.0,9.844e-05,2]
[348350778,1736461836644,-500.0,9.844e-05,2]
[348350779,1736461836653,-500.0,9.844e-05,2]
[348350780,1736461836661,-342.73536144,9.844e-05,2]
[348350781,1736461836670,-933.55,9.844e-05,2]
[348350782,1736461836679,-500.0,9.844e-05,2]
[348350783,1736461836687,-500.0,9.844e-05,2]
[348350784,1736461836695,-500.0,9.844e-05,2]
[348350785,1736461836705,-500.0,9.844e-05,2]
[348350786,1736461836715,-500.0,9.844e-05,2]
[348350787,1736461836724,-500.0,9.844e-05,2]
[348350788,1736461836734,-500.0,9.844e-05,2]
[348350789,1736461836743,-500.0,9.844e-05,2]
[348350790,1736461836752,-500.0,9.844e-05,2]
[348350791,1736461836761,-500.0,9.844e-05,2]
[348350792,1736461836771,-500.0,9.844e-05,2]
[348350793,1736461836780,-500.0,9.844e-05,2]
[348350794,1736461836789,-500.0,9.844e-05,2]
[348350795,1736461836799,-500.0,9.844e-05,2]
[348350796,1736461836808,-500.0,9.844e-05,2]
[348350797,1736461836818,-500.0,9.844e-05,2]
[348350798,1736461836827,-500.0,9.844e-05,2]
[348350799,1736461836837,-1981.41,9.844e-05,2]
[348350800,1736461836846,-500.0,9.844e-05,2]
[348350801,1736461836856,-500.0,9.844e-05,2]
[348350802,1736461837053,-500.0,9.844e-05,2]
[348350803,1736461837063,-500.0,9.844e-05,2]
[348350804,1736461837072,-500.0,9.844e-05,2]
[348350805,1736461837081,-500.0,9.844e-05,2]
[348350806,1736461837091,-500.0,9.844e-05,2]
[348350807,1736461837100,-500.0,9.844e-05,2]
[348350808,1736461837110,-500.0,9.844e-05,2]
[348350809,1736461837119,-326.05483682,9.844e-05,2]
[348350810,1736461837128,-500.0,9.844e-05,2]
[348350811,1736461837137,-500.0,9.844e-05,2]
[348350812,1736461837147,-401.51676924,9.844e-05,2]
[348350818,1736461837540,-98.48323076,9.844e-05,2]
[348350819,1736461837551,-500.0,9.844e-05,2]
[348350820,1736461837560,-511.0,9.844e-05,2]
[348350821,1736461837571,-500.0,9.844e-05,2]
[348350822,1736461837581,-71.51676924,9.844e-05,2]
[348350824,1736461837608,-428.48323076,9.844e-05,2]
[348350826,1736461837617,-135.69177764,9.844e-05,2]
[348350828,1736461837628,-364.30822236,9.844e-05,2]
[348350830,1736461837638,-1958.38,9.844e-05,2]
[348350832,1736461837647,-1236.19,9.844e-05,2]
[348350834,1736461837656,-500.0,9.844e-05,2]
[348350836,1736461837665,-500.0,9.844e-05,2]
[348350838,1736461837675,-500.0,9.844e-05,2]
[348350839,1736461837684,-500.0,9.844e-05,2]
[348350840,1736461837694,-500.0,9.844e-05,2]
[348350841,1736461837703,-500.0,9.844e-05,2]
[348350842,1736461837714,-500.0,9.844e-05,2]
[348350843,1736461837723,-500.0,9.844e-05,2]
[348350844,1736461837732,-500.0,9.844e-05,2]
[348350845,1736461837741,-500.0,9.844e-05,2]
[348350846,1736461837750,-980.14776576,9.844e-05,2]
[348350847,1736461837774,-844.43223424,9.844e-05,2]
[348350848,1736461837783,-500.0,9.844e-05,2]
[348350849,1736461837792,-500.0,9.844e-05,2]
[348350850,1736461837801,-500.0,9.844e-05,2]
[348350851,1736461837810,-500.0,9.844e-05,2]
[348350852,1736461837820,-500.0,9.844e-05,2]
[348350853,1736461837829,-500.0,9.844e-05,2]
[348350854,1736461837838,-500.0,9.844e-05,2]
[348350855,1736461837847,-500.0,9.844e-05,2]
[348350856,1736461837856,-500.0,9.844e-05,2]
[348350857,1736461837865,-500.0,9.844e-05,2]
[348350858,1736461837877,-500.0,9.844e-05,2]
[348350859,1736461837886,-500.0,9.844e-05,2]
[348350860,1736461837896,-500.0,9.844e-05,2]
[348350861,1736461837905,-500.0,9.844e-05,2]
[348350862,1736461837914,-500.0,9.844e-05,2]
[348350863,1736461837924,-500.0,9.844e-05,2]
[348350864,1736461837933,-500.0,9.844e-05,2]
[348350865,1736461837942,-500.0,9.844e-05,2]
[348350866,1736461837951,-500.0,9.844e-05,2]
[348350867,1736461837963,-500.0,9.844e-05,2]
[348350868,1736461837972,-500.0,9.844e-05,2]
[348350869,1736461837981,-2146.58,9.844e-05,2]
[348350870,1736461837990,-592.57,9.844e-05,2]
[348350871,1736461837999,-500.0,9.844e-05,2]
[348350872,1736461838008,-500.0,9.844e-05,2]
[348350873,1736461838017,-500.0,9.844e-05,2]
[348350874,1736461838026,-500.0,9.844e-05,2]
[348350875,1736461838042,-500.0,9.844e-05,2]
[348350876,1736461838052,-500.0,9.844e-05,2]
[348350877,1736461838061,-500.0,9.844e-05,2]
[348350878,1736461838071,-500.0,9.844e-05,2]
[348350879,1736461838080,-500.0,9.844e-05,2]
[348350880,1736461838090,-500.0,9.844e-05,2]
[348350881,1736461838100,-500.0,9.844e-05,2]
[348350882,1736461838110,-2902.72,9.844e-05,2]
[348350883,1736461838120,-500.0,9.844e-05,2]
[348350884,1736461838130,-500.0,9.844e-05,2]
[348350885,1736461838140,-511.12,9.844e-05,2]
[348350886,1736461838150,-500.0,9.844e-05,2]
[348350888,1736461838160,-500.0,9.844e-05,2]
[348350890,1736461838170,-500.0,9.844e-05,2]
[348350892,1736461838179,-500.0,9.844e-05,2]
[348350895,1736461838189,-500.0,9.844e-05,2]
[348350898,1736461838198,-500.0,9.844e-05,2]
[348350901,1736461838208,-500.0,9.844e-05,2]
[348350904,1736461838218,-500.0,9.844e-05,2]
[348350907,1736461838228,-500.0,9.844e-05,2]
[348350909,1736461838238,-500.0,9.844e-05,2]
[348350911,1736461838247,-500.0,9.844e-05,2]
[348350913,1736461838257,-1624.57680936,9.844e-05,2]
[348350918,1736461838292,-1385.84366807,9.844e-05,2]
[348350921,1736461839448,-862.24427429,9.844e-05,2]
[348350922,1736461839460,-378.00513087,9.844e-05,2]
[348350924,1736461839475,-1012.13738047,9.844e-05,2]
[348350925,1736461839486,-1918.13875,9.844e-05,2]
[348350926,1736461839497,-720.16650022,9.844e-05,2]
[348350927,1736461839509,-1256.38748672,9.844e-05,2]
[348350928,1736461839520,-500.0,9.844e-05,2]
[348350929,1736461839530,-500.0,9.844e-05,2]
[348350930,1736461839539,-500.0,9.844e-05,2]
[348350931,1736461839549,-500.0,9.844e-05,2]
[348350932,1736461839558,-500.0,9.844e-05,2]
[348350933,1736461839567,-500.0,9.844e-05,2]
[348350934,1736461839577,-500.0,9.844e-05,2]